bitfinex-derivatives/quotes_SOLF0:USTF0_20260207
["timestamp","ask_amount","ask_price","bid_price","bid_amount"]
[1770490187465,492.53514254,89.201,89.095,3.75000449]
[1770490187466,10.1004,89.175,89.095,3.75000449]
[1770490187768,3.79317826,89.174,89.11,3.75000449]
[1770490188469,3.79317826,89.174,89.125,3.75000449]
[1770490188858,3.79317826,89.189,89.125,3.75000449]
[1770490190258,3.79317826,89.187,89.125,3.75000449]
[1770490190960,3.79317826,89.169,89.109,3.75000449]
[1770490191272,3.79317826,89.169,89.092,3.75000449]
[1770490191478,10.1034,89.148,89.092,3.75000449]
[1770490191768,3.79317826,89.169,89.092,3.75000449]
[1770490191962,3.79317826,89.169,89.094,3.75000449]
[1770490192866,475.30482511,89.201,89.113,3.75000449]
[1770490193170,3.79317826,89.2,89.113,3.75000449]
[1770490194264,10.0977,89.198,89.133,3.75000449]
[1770490194459,3.79317826,89.197,89.133,3.75000449]
[1770490194868,13.89117826,89.196,89.133,3.75000449]
[1770490195770,3.79317826,89.213,89.135,3.75000449]
[1770490196769,3.79317826,89.209,89.135,3.75000449]
[1770490197772,10.0985,89.192,89.135,3.75000449]
[1770490198465,3.79317826,89.203,89.136,3.75000449]
[1770490198973,3.79317826,89.189,89.119,3.75000449]
[1770490199174,3.79317826,89.176,89.119,3.75000449]
[1770490199972,10.1011,89.169,89.119,3.75000449]
[1770490200167,13.89427826,89.169,89.119,3.75000449]
[1770490200376,3.79317826,89.168,89.099,3.75000449]
[1770490200668,10.0999,89.179,89.101,3.75000449]
[1770490200870,3.79317826,89.185,89.123,3.75000449]
[1770490201974,3.79317826,89.171,89.081,3.75000449]
[1770490202774,10.101,89.17,89.104,3.75000449]
[1770490202975,3.79317826,89.169,89.104,3.75000449]
[1770490203174,21.02349569,89.228,88.965,157.4874]
[1770490203175,3.79317826,89.159,89.061,3.75000449]
[1770490204477,10.1045,89.139,89.072,3.75000449]
[1770490204675,3.79317826,89.141,89.072,3.75000449]
[1770490205177,10.1058,89.128,89.072,3.75000449]
[1770490205380,20.2,89.179,89.072,3.75000449]
[1770490205381,3.72427724,89.127,89.072,3.75000449]
[1770490206882,3.72427724,89.125,89.072,3.75000449]
[1770490207786,9.154051,89.12,89.049,3.6332803]
[1770490208080,3.72427724,89.119,89.049,3.6332803]
[1770490208673,3.72427724,89.099,89.032,13.7498803]
[1770490208870,3.72427724,89.099,89.033,3.6332803]
[1770490209674,3.72427724,89.097,89.016,3.6332803]
[1770490209874,3.72427724,89.079,89.016,3.6332803]
[1770490210377,3.72427724,89.079,88.996,3.6332803]
[1770490210686,3.72427724,89.059,88.996,3.6332803]
[1770490214682,3.54578106,89.054,88.996,3.6332803]
[1770490217079,3.54578106,89.054,88.998,10.1204]
[1770490217385,3.54578106,89.054,88.999,3.56133551]
[1770490218792,3.54578106,89.082,89.003,3.56133551]
[1770490219190,3.54578106,89.079,89.003,3.56133551]
[1770490219486,3.54578106,89.079,89.008,3.56133551]
[1770490219791,3.54578106,89.079,88.912,10.04432437]
[1770490219792,3.54578106,89.119,89.021,3.56133551]
[1770490220186,3.54578106,89.104,89.033,10.1164]
[1770490220787,3.54578106,89.102,89.034,3.56133551]
[1770490221090,3.54578106,89.102,89.035,13.67753551]
[1770490221388,3.54578106,89.099,89.036,3.56133551]
[1770490222790,10.1075,89.112,89.038,3.56133551]
[1770490223086,3.54578106,89.111,89.038,3.56133551]
[1770490224792,3.54578106,89.109,89.039,3.56133551]
[1770490226396,3.54578106,89.079,89.018,3.56133551]
[1770490227094,3.54578106,89.048,88.987,431.73587862]
[1770490227894,3.54578106,89.038,88.987,431.73587862]
[1770490229385,3.54578106,89.059,88.988,3.56133551]
[1770490230495,3.54578106,89.055,88.988,3.56133551]
[1770490231389,3.54578106,89.048,88.988,3.56133551]
[1770490231996,9.154051,89.06,88.987,431.73587862]
[1770490231997,13.66208106,89.035,88.987,431.73587862]
[1770490233199,3.54578106,89.035,88.987,431.73587862]
[1770490234810,13.66208106,89.035,88.987,431.73587862]
[1770490235102,3.54578106,89.034,88.987,431.73587862]
[1770490235808,10.1167,89.031,88.987,431.73587862]
[1770490237202,10.1181,89.019,88.987,414.08287862]
[1770490237404,13.6500861,89.019,88.971,3.56133551]
[1770490237799,13.6500861,89.019,88.94,9.154051]
[1770490237800,10.1188,89.013,88.956,3.74158255]
[1770490238102,3.5319861,89.012,88.956,3.74158255]
[1770490238502,10.119,89.011,88.956,3.74158255]
[1770490238809,3.5319861,89.01,88.94,3.74158255]
[1770490239708,10.1204,88.999,88.94,3.74158255]
[1770490240299,3.5319861,88.998,88.94,3.74158255]
[1770490241009,3.5319861,88.995,88.94,3.74158255]
[1770490241405,3.5319861,88.995,88.859,33.84]
[1770490241406,3.5319861,88.979,88.915,3.74158255]
[1770490242199,3.5319861,88.974,88.915,3.74158255]
[1770490243605,3.5319861,88.96,88.89,3.74158255]
[1770490244712,3.5319861,88.955,88.89,3.74158255]
[1770490245714,3.5319861,88.989,88.901,3.74158255]
[1770490246017,3.5319861,88.989,88.92,9.154051]
[1770490246206,3.5319861,88.989,88.921,3.74158255]
[1770490246908,3.5319861,89.006,88.921,3.74158255]
[1770490247709,3.5319861,89.005,88.934,3.74158255]
[1770490248505,10.1206,88.997,88.936,3.74158255]
[1770490250918,10.1206,88.997,88.852,33.84]
[1770490250919,3.5319861,89.022,88.941,3.74158255]
[1770490251211,3.5319861,89.022,88.961,3.74158255]
[1770490251411,10.1167,89.032,88.97,3.74158255]
[1770490251619,3.5319861,89.031,88.97,3.74158255]
[1770490252019,10.117,89.028,88.97,3.74158255]
[1770490252218,3.5319861,89.031,88.97,3.74158255]
[1770490252413,3.5319861,89.031,88.972,10.1234]
[1770490252621,3.5319861,89.031,88.973,3.74158255]
[1770490253215,3.5319861,89.051,88.991,3.74158255]
[1770490255015,3.5319861,89.046,88.991,3.74158255]
[1770490255224,3.5319861,89.046,88.974,3.74158255]
[1770490256220,13.6478861,89.039,88.976,3.74158255]
[1770490256420,3.5319861,89.038,88.976,3.74158255]
[1770490257321,13.6482861,89.035,88.976,3.74158255]
[1770490259022,3.5319861,89.03,88.931,3.74158255]
[1770490259424,3.5319861,89.03,88.911,20.2607]
[1770490259425,3.5319861,89.03,88.941,3.74158255]
[1770490259620,13.6503861,89.016,88.947,3.74158255]
[1770490259820,3.5319861,89.036,88.961,3.74158255]
[1770490260722,3.5319861,89.036,88.96,9.18800506]
[1770490260723,3.5319861,89.036,88.976,3.74158255]
[1770490261928,3.5319861,89.058,88.981,3.74158255]
[1770490262321,10.1152,89.044,88.982,3.74158255]
[1770490262724,13.6455861,89.058,88.99,3.74158255]
[1770490263024,13.6455861,89.058,88.911,20.2607]
[1770490263025,3.5319861,89.12,89.021,3.74158255]
[1770490263223,3.5319861,89.12,89.041,3.74158255]
[1770490263418,3.5319861,89.118,89.041,3.74158255]
[1770490264227,3.5319861,89.107,89.041,3.74158255]
[1770490265125,13.85420621,89.148,89.041,3.74158255]
[1770490265126,3.5319861,89.125,89.041,3.74158255]
[1770490265323,3.5319861,89.125,88.95,157.5129]
[1770490265324,3.5319861,89.125,89.057,3.88358558]
[1770490265629,3.73187847,89.159,89.057,3.88358558]
[1770490265829,3.73187847,89.139,89.057,3.88358558]
[1770490266523,3.73187847,89.139,89.074,3.88358558]
[1770490266925,3.73187847,89.139,89.057,3.88358558]
[1770490267219,3.73187847,89.139,89.071,3.88358558]
[1770490267925,3.73187847,89.129,89.054,3.88358558]
[1770490269233,3.73187847,89.127,89.054,3.88358558]
[1770490269825,3.73187847,89.124,89.054,3.88358558]
[1770490270728,3.73187847,89.109,89.022,3.88358558]
[1770490271130,3.73187847,89.109,89.025,3.70407265]
[1770490272128,3.88136444,89.107,89.025,3.70407265]
[1770490273736,3.88136444,89.105,89.025,3.70407265]
[1770490274432,3.88136444,89.105,89.026,3.70407265]
[1770490274634,3.88136444,89.129,89.051,3.70407265]
[1770490275035,3.88136444,89.129,89.058,3.70407265]
[1770490276234,10.1057,89.128,89.059,3.70407265]
[1770490276435,3.88136444,89.127,89.059,3.70407265]
[1770490276832,3.88136444,89.123,89.059,3.70407265]
[1770490277630,3.88136444,89.121,89.046,10.1149]
[1770490277831,3.88136444,89.119,89.04,3.70407265]
[1770490278733,3.88136444,89.118,89.04,3.70407265]
[1770490279440,3.88136444,89.116,89.042,3.70407265]
[1770490279934,3.88136444,89.114,89.042,3.70407265]
[1770490280333,3.88136444,89.114,89.026,10.1172]
[1770490280535,3.88136444,89.099,89.026,10.1172]
[1770490281845,3.88136444,89.095,89.026,10.1172]
[1770490282050,3.88136444,89.095,89.015,10.1185]
[1770490283146,3.88136444,89.079,89.015,10.1185]
[1770490283334,3.88136444,89.079,89.008,3.70407265]
[1770490283739,3.88136444,89.098,89.011,3.70407265]
[1770490284251,3.88136444,89.098,89.033,3.70407265]
[1770490285749,3.88136444,89.098,89.044,10.1151]
[1770490286043,3.88136444,89.098,89.033,3.70407265]
[1770490287342,3.88136444,89.098,89.038,10.1158]
[1770490287545,3.88136444,89.098,89.039,3.70407265]
[1770490288044,13.98816444,89.118,89.04,3.70407265]
[1770490288242,20.77967883,89.154,88.992,20.2422]
[1770490288243,3.88136444,89.135,89.051,3.70407265]
[1770490289746,3.88136444,89.133,89.066,10.1126]
[1770490289946,3.88136444,89.133,89.067,3.70407265]
[1770490290148,3.88136444,89.119,89.02,9.18800506]
[1770490291743,3.88136444,89.106,89.041,10.1155]
[1770490292247,3.88136444,89.106,89.042,3.70407265]
[1770490292747,10.1087,89.102,89.042,3.70407265]
[1770490293338,3.88136444,89.101,89.042,3.70407265]
[1770490293646,3.88136444,89.099,89.042,3.70407265]
[1770490293954,3.88136444,89.099,89.025,3.70407265]
[1770490294150,3.88136444,89.095,89.008,3.70407265]
[1770490295252,13.99206444,89.084,89.023,3.70407265]
[1770490296051,3.60080717,89.079,89.023,3.70407265]
[1770490296651,3.60080717,89.077,89.023,3.70407265]
[1770490297749,3.60080717,89.077,89.013,10.1186]
[1770490297750,3.60080717,89.075,89.007,3.67751159]
[1770490298852,10.1131,89.063,89.007,3.67751159]
[1770490302055,3.60080717,89.062,88.991,3.67751159]
[1770490302354,3.60080717,89.045,88.961,3.67751159]
[1770490302553,13.71780717,89.029,88.965,3.67751159]
[1770490302758,3.60080717,89.044,88.965,3.67751159]
[1770490303758,3.60080717,89.04,88.96,3.67751159]
[1770490303963,3.60080717,89.026,88.96,3.67751159]
[1770490304144,3.60080717,89.026,88.896,157.2]
[1770490304145,3.60080717,89.013,88.941,3.67751159]
[1770490305959,10.1201,89.002,88.941,3.67751159]
[1770490307160,3.60080717,88.999,88.941,3.67751159]
[1770490307855,3.60080717,88.996,88.941,3.67751159]
[1770490309460,3.60080717,89.022,88.943,3.67751159]
[1770490310761,3.60080717,89.022,88.949,3.67751159]
[1770490311262,3.60080717,89.022,88.9,9.18800506]
[1770490311263,3.60080717,89.038,88.985,3.67751159]
[1770490312064,3.60080717,89.038,88.987,3.67751159]
[1770490312663,3.60080717,89.057,88.994,3.67751159]
[1770490313658,3.60080717,89.052,88.961,3.67751159]
[1770490314254,3.60080717,89.052,88.98,9.18800506]
[1770490314460,3.60080717,89.052,88.998,3.67751159]
[1770490315861,3.60080717,89.052,88.981,3.67751159]
[1770490316865,3.60080717,89.05,88.981,3.67751159]
[1770490317563,3.60080717,89.05,88.984,3.67751159]
[1770490318364,3.60080717,89.05,88.989,3.67751159]
[1770490319768,3.60080717,89.05,88.995,10.1207]
[1770490319962,3.60080717,89.05,88.989,3.67751159]
[1770490320655,3.60080717,89.05,88.992,3.67751159]
[1770490321369,3.60080717,89.045,88.992,3.67751159]
[1770490322162,3.60080717,89.042,88.976,3.67751159]
[1770490323567,3.60080717,89.029,88.976,3.67751159]
[1770490323957,3.60080717,89.005,88.931,3.67751159]
[1770490325164,3.60080717,89.0,88.943,3.67751159]
[1770490325362,10.41023929,89.029,88.943,3.67751159]
[1770490325363,3.66808105,89.029,88.943,3.67751159]
[1770490326367,3.66808105,89.022,88.959,3.5803033]
[1770490327364,3.66808105,89.022,88.963,3.5803033]
[1770490327564,10.1161,89.037,88.963,3.5803033]
[1770490327565,3.66808105,89.036,88.963,3.5803033]
[1770490327966,3.66808105,89.024,88.963,3.5803033]
[1770490328565,9.18124961,89.03,88.963,3.5803033]
[1770490328566,3.66808105,89.021,88.963,3.5803033]
[1770490329571,3.66808105,89.018,88.948,3.5803033]
[1770490330770,3.66808105,89.012,88.948,3.5803033]
[1770490331872,3.83515941,89.008,88.948,3.5803033]
[1770490334373,3.83515941,89.022,88.949,3.85580561]
[1770490334573,3.83515941,89.022,88.961,3.85580561]
[1770490335777,3.83515941,89.022,88.975,3.85580561]
[1770490336476,3.83515941,89.041,88.978,3.85580561]
[1770490337877,3.83515941,89.041,88.985,3.85580561]
[1770490338674,3.83515941,89.041,88.988,10.1215]
[1770490341483,3.83515941,89.041,88.988,13.97730561]
[1770490342375,3.83515941,89.041,88.989,3.85580561]
[1770490343184,3.83515941,89.038,88.989,3.85580561]
[1770490343481,3.83515941,89.038,88.974,3.85580561]
[1770490343680,10.1184,89.017,88.951,10.1257]
[1770490343883,3.83515941,89.019,88.941,3.85580561]
[1770490344085,3.83515941,89.018,88.941,3.85580561]
[1770490344278,3.83515941,89.006,88.943,3.85580561]
[1770490345886,3.83515941,89.004,88.945,3.85580561]
[1770490347787,3.83515941,88.999,88.945,3.85580561]
[1770490349174,13.96317067,89.015,88.945,3.85580561]
[1770490349175,3.83515941,89.013,88.945,3.85580561]
[1770490350284,3.83515941,89.013,88.954,3.85580561]
[1770490351486,3.83515941,89.013,88.96,3.85580561]
[1770490352890,3.83515941,89.01,88.945,3.85580561]
[1770490353186,3.83515941,88.995,88.931,3.85580561]
[1770490353784,3.83515941,88.993,88.931,3.85580561]
[1770490353985,3.83515941,88.99,88.931,3.85580561]
[1770490355087,3.83515941,88.99,88.935,10.1276]
[1770490355282,3.83515941,88.99,88.936,3.85580561]
[1770490356494,3.64052516,88.986,88.913,3.72868757]
[1770490356890,3.64052516,88.983,88.913,3.72868757]
[1770490357489,3.64052516,88.983,88.926,3.72868757]
[1770490358296,10.41023929,88.996,88.928,3.72868757]
[1770490358498,3.64052516,88.997,88.928,3.72868757]
[1770490359789,3.64052516,88.997,88.942,3.72868757]
[1770490360891,3.64052516,88.997,88.944,3.72868757]
[1770490361096,3.64052516,89.015,88.944,3.72868757]
[1770490361294,3.64052516,89.013,88.944,3.72868757]
[1770490361690,20.77967883,89.037,88.905,440.81168582]
[1770490361691,3.64052516,89.007,88.948,3.72868757]
[1770490361895,9.18124961,89.01,88.948,3.72868757]
[1770490361896,3.64052516,89.003,88.948,3.72868757]
[1770490362594,3.64052516,88.999,88.948,3.72868757]
[1770490364995,3.64052516,89.013,88.95,3.72868757]
[1770490366398,3.64052516,89.013,88.962,3.72868757]
[1770490367897,3.64052516,89.013,88.963,10.1244]
[1770490368201,3.64052516,89.013,88.963,3.72868757]
[1770490368892,3.64052516,89.013,88.964,3.72868757]
[1770490373904,3.64052516,89.013,88.969,10.1237]
[1770490374203,3.64052516,89.013,88.969,13.85238757]
[1770490374497,3.64052516,89.013,88.97,3.72868757]
[1770490376902,3.64052516,89.027,88.97,3.72868757]
[1770490377399,3.64052516,89.027,88.975,13.85168757]
[1770490377706,3.64052516,89.022,88.975,3.72868757]
[1770490378506,3.64052516,89.02,88.975,3.72868757]
[1770490379903,3.64052516,89.019,88.961,3.72868757]
[1770490380100,3.64052516,89.01,88.961,3.72868757]
[1770490381108,3.64052516,89.01,88.963,3.72868757]
[1770490381407,3.64052516,89.023,88.963,3.72868757]
[1770490382000,3.64052516,89.023,88.965,3.72868757]
[1770490382601,10.41023929,89.034,88.988,3.72868757]
[1770490382807,3.64052516,89.038,88.988,3.72868757]
[1770490383007,10.41023929,89.043,88.988,3.72868757]
[1770490383404,10.41023929,89.043,88.96,9.18582691]
[1770490383405,10.41023929,89.043,88.992,3.72868757]
[1770490383707,14.05076445,89.048,88.992,3.72868757]
[1770490384007,3.64052516,89.043,88.992,3.72868757]
[1770490385513,10.41023929,89.04,88.992,3.72868757]
[1770490385713,14.06749835,89.04,88.992,3.72868757]
[1770490385912,3.65725906,89.04,88.992,3.72868757]
[1770490387516,3.65725906,89.039,88.992,3.72868757]
[1770490387711,3.65725906,89.028,88.977,3.74100615]
[1770490387916,3.65725906,89.009,88.964,3.74100615]
[1770490390218,3.65725906,89.009,88.948,3.74100615]
[1770490392720,3.82894494,89.021,88.952,3.82422951]
[1770490393721,3.82894494,89.021,88.956,3.82422951]
[1770490394027,3.82894494,89.019,88.956,3.82422951]
[1770490394822,3.82894494,89.019,88.958,3.82422951]
[1770490395024,3.82894494,89.018,88.958,3.82422951]
[1770490395222,3.82894494,89.016,88.958,3.82422951]
[1770490397030,3.82894494,89.016,88.962,3.82422951]
[1770490398730,3.82894494,89.016,88.963,13.94862951]
[1770490399328,3.82894494,89.016,88.964,3.82422951]
[1770490401031,3.82894494,89.011,88.953,10.1255]
[1770490401235,3.82894494,89.006,88.949,3.82422951]
[1770490401435,3.82894494,89.001,88.949,3.82422951]
[1770490402031,3.82894494,88.998,88.949,3.82422951]
[1770490402233,14.31523699,88.998,88.949,3.82422951]
[1770490402432,3.82894494,88.998,88.949,3.82422951]
[1770490403440,14.31523699,88.998,88.949,3.82422951]
[1770490404339,14.31523699,88.998,88.951,3.82422951]
[1770490404540,3.82894494,88.998,88.951,3.82422951]
[1770490404935,10.48629205,89.008,88.951,3.82422951]
[1770490405139,3.82894494,89.007,88.951,3.82422951]
[1770490405739,10.48629205,89.003,88.953,3.82422951]
[1770490406040,3.82894494,89.004,88.953,3.82422951]
[1770490406234,3.82894494,89.002,88.953,3.82422951]
[1770490406540,3.82894494,89.002,88.956,3.82422951]
[1770490407743,3.82894494,89.002,88.959,10.1248]
[1770490408345,10.48629205,89.007,88.92,9.18992499]
[1770490408346,10.48629205,89.007,88.969,13.94792951]
[1770490408647,10.48629205,89.007,88.97,3.82422951]
[1770490409135,10.48629205,89.005,88.958,3.82422951]
[1770490409340,3.82894494,88.992,88.945,3.82422951]
[1770490409536,3.6780384,88.98,88.945,3.82422951]
[1770490410652,3.82894494,88.992,88.945,3.82422951]
[1770490410848,3.82894494,88.992,88.951,3.82422951]
[1770490411351,3.6780384,88.98,88.937,3.82422951]
[1770490411649,3.82894494,88.989,88.941,3.82422951]
[1770490411850,3.82894494,88.989,88.944,10.1265]
[1770490412743,3.82894494,88.989,88.944,13.95072951]
[1770490413853,10.48629205,89.005,88.951,3.82422951]
[1770490414048,10.48629205,89.006,88.951,3.82422951]
[1770490414347,14.31523699,89.006,88.951,3.82422951]
[1770490414547,3.6780384,89.0,88.951,3.82422951]
[1770490414754,3.6780384,89.0,88.959,10.1248]
[1770490415055,3.82894494,89.006,88.959,13.94902951]
[1770490415448,3.6780384,89.0,88.959,13.94902951]
[1770490417251,3.82894494,89.006,88.962,13.91359406]
[1770490417755,3.6780384,89.0,88.962,13.91359406]
[1770490418048,20.77967883,89.031,88.908,435.48974284]
[1770490418049,3.6780384,88.99,88.95,13.91589406]
[1770490418354,3.81464797,88.979,88.936,3.78909406]
[1770490419051,3.6780384,88.95,88.919,3.78909406]
[1770490419247,3.6780384,88.95,88.908,435.48974284]
[1770490419248,3.6780384,88.95,88.909,3.78909406]
[1770490419549,3.6780384,88.94,88.909,3.78909406]
[1770490419752,3.6780384,88.93,88.887,3.78909406]
[1770490420150,3.6780384,88.93,88.89,10.1337]
[1770490420954,3.81464797,88.939,88.893,3.78909406]
[1770490421155,3.6780384,88.93,88.893,3.78909406]
[1770490421449,3.81464797,88.939,88.893,3.78909406]
[1770490422346,3.81464797,88.939,88.879,3.78909406]
[1770490422542,3.81464797,88.939,88.868,10.1362]
[1770490422543,3.81464797,88.923,88.868,10.1362]
[1770490422745,3.81464797,88.923,88.869,3.78909406]
[1770490423650,3.81464797,88.923,88.871,3.78909406]
[1770490424852,3.81464797,88.923,88.872,13.92489406]
[1770490425852,3.81464797,88.923,88.875,3.78909406]
[1770490426655,3.81464797,88.923,88.876,10.1353]
[1770490426854,3.81464797,88.923,88.875,3.78909406]
[1770490432755,3.81464797,88.945,88.875,3.78909406]
[1770490433563,3.81464797,88.945,88.85,9.20460322]
[1770490433564,3.81464797,88.943,88.877,3.78909406]
[1770490435955,3.81464797,88.941,88.877,3.78909406]
[1770490436162,3.81464797,88.939,88.877,3.78909406]
[1770490436556,10.1306,88.918,88.877,3.78909406]
[1770490436752,10.1306,88.918,88.789,157.8149]
[1770490436753,3.81464797,88.917,88.841,3.78909406]
[1770490438260,3.81464797,88.912,88.843,3.78909406]
[1770490439161,3.81464797,88.912,88.846,3.78909406]
[1770490439360,3.81464797,88.937,88.846,3.78909406]
[1770490439959,3.81464797,88.935,88.865,3.78909406]
[1770490440765,3.81464797,88.93,88.865,3.78909406]
[1770490441362,3.81464797,88.93,88.867,3.78909406]
[1770490441567,3.68278974,88.91,88.867,3.78909406]
[1770490441763,13.96317067,88.953,88.779,20.2927]
[1770490441764,7.49743771,88.89,88.779,20.2927]
[1770490441961,7.49743771,88.89,88.831,10.1405]
[1770490442264,3.68278974,88.88,88.779,20.2927]
[1770490442568,3.68278974,88.88,88.82,3.68278974]
[1770490442767,3.81464797,88.869,88.81,3.68278974]
[1770490443861,3.81464797,88.885,88.831,3.78909406]
[1770490445460,3.82396909,88.879,88.791,3.85770273]
[1770490445767,3.82396909,88.859,88.801,3.85770273]
[1770490445967,3.82396909,88.859,88.811,3.85770273]
[1770490447068,3.68278974,88.85,88.811,3.85770273]
[1770490447762,3.68278974,88.84,88.795,3.85770273]
[1770490448172,3.68278974,88.83,88.795,3.85770273]
[1770490448573,3.82396909,88.849,88.795,3.85770273]
[1770490448770,3.82396909,88.849,88.8,3.68278974]
[1770490448967,3.82396909,88.849,88.801,3.85770273]
[1770490449171,3.82396909,88.864,88.811,3.85770273]
[1770490449474,3.82396909,88.859,88.811,3.85770273]
[1770490449676,3.82396909,88.859,88.782,3.85770273]
[1770490450672,3.82396909,88.857,88.782,3.85770273]
[1770490451678,10.1384,88.85,88.782,3.85770273]
[1770490451882,3.87359016,88.849,88.782,3.85770273]
[1770490453477,10.1388,88.846,88.782,3.85770273]
[1770490453682,3.87359016,88.845,88.782,3.85770273]
[1770490453879,10.1395,88.84,88.782,3.85770273]
[1770490454084,3.87359016,88.839,88.782,3.85770273]
[1770490454581,3.87359016,88.836,88.782,3.85770273]
[1770490454787,3.87359016,88.836,88.767,3.68709807]
[1770490455486,10.1413,88.824,88.767,3.68709807]
[1770490455683,3.87359016,88.823,88.743,3.68709807]
[1770490455882,10.1459,88.784,88.743,3.68709807]
[1770490456085,3.87359016,88.783,88.742,1.55997511]
[1770490456885,3.87359016,88.819,88.742,1.55997511]
[1770490457085,3.87359016,88.808,88.743,3.68709807]
[1770490457786,3.87359016,88.808,88.745,3.68709807]
[1770490458781,3.87359016,88.808,88.747,3.68709807]
[1770490461384,9.22049041,88.85,88.751,3.68709807]
[1770490461385,3.87359016,88.824,88.751,3.68709807]
[1770490462090,3.87359016,88.824,88.752,10.1495]
[1770490462280,3.87359016,88.824,88.753,3.68709807]
[1770490463089,3.87359016,88.824,88.755,3.68709807]
[1770490463488,3.87359016,88.844,88.771,3.68709807]
[1770490463890,14.01309016,88.84,88.772,3.68709807]
[1770490464090,3.87359016,88.839,88.772,3.68709807]
[1770490464889,3.87359016,88.835,88.757,3.68709807]
[1770490465294,3.87359016,88.822,88.757,3.68709807]
[1770490465986,10.1422,88.816,88.757,3.68709807]
[1770490466387,14.01579016,88.816,88.757,3.68709807]
[1770490468798,3.87359016,88.816,88.759,3.68709807]
[1770490469392,10.1427,88.812,88.759,3.68709807]
[1770490469995,14.01629016,88.812,88.759,3.68709807]
[1770490470390,10.1415,88.823,88.759,3.68709807]
[1770490470595,3.87359016,88.859,88.761,3.68709807]
[1770490471599,3.87359016,88.843,88.77,3.68709807]
[1770490472799,3.87359016,88.837,88.77,3.68709807]
[1770490473398,3.87359016,88.834,88.77,3.68709807]
[1770490473793,3.87359016,88.828,88.77,3.68709807]
[1770490474704,10.1409,88.827,88.77,3.68709807]
[1770490474903,14.01449016,88.827,88.77,3.68709807]
[1770490475305,3.87359016,88.826,88.77,3.68709807]
[1770490476594,3.9101286,88.824,88.77,3.68709807]
[1770490477301,3.9101286,88.822,88.77,3.68709807]
[1770490477507,3.9101286,88.822,88.755,3.85848059]
[1770490477799,3.9101286,88.817,88.755,3.85848059]
[1770490478600,3.9101286,88.832,88.771,3.85848059]
[1770490480998,3.9101286,88.852,88.786,3.85848059]
[1770490481703,3.9101286,88.866,88.802,3.85848059]
[1770490482805,3.9101286,88.866,88.812,3.85848059]
[1770490484110,3.9101286,88.881,88.812,3.85848059]
[1770490484505,3.9101286,88.881,88.81,9.22049041]
[1770490484506,3.9101286,88.881,88.817,3.85848059]
[1770490484810,3.9101286,88.869,88.817,3.85848059]
[1770490485803,3.9101286,88.866,88.817,3.85848059]
[1770490488304,3.9101286,88.861,88.791,3.85848059]
[1770490488506,3.9101286,88.851,88.791,3.85848059]
[1770490488706,3.9101286,88.842,88.777,3.85848059]
[1770490488907,3.9101286,88.841,88.777,3.85848059]
[1770490489311,3.9101286,88.839,88.777,3.85848059]
[1770490490610,3.9101286,88.839,88.76,9.22049041]
[1770490490611,10.48629205,88.846,88.78,9.22049041]
[1770490490802,3.9101286,88.851,88.78,9.22049041]
[1770490490803,3.9101286,88.851,88.781,3.85848059]
[1770490491007,3.9101286,88.851,88.802,10.1437]
[1770490491202,10.48629205,88.864,88.803,3.85848059]
[1770490491408,10.48629205,88.865,88.803,3.85848059]
[1770490491612,14.39642065,88.866,88.803,3.85848059]
[1770490491812,3.9101286,88.865,88.803,3.85848059]
[1770490492013,10.48629205,88.863,88.803,3.85848059]
[1770490492213,14.39642065,88.863,88.803,3.85848059]
[1770490492414,3.9101286,88.863,88.803,3.85848059]
[1770490492811,3.9101286,88.863,88.808,3.85848059]
[1770490493010,3.9101286,88.862,88.808,3.85848059]
[1770490493213,3.9101286,88.858,88.808,3.85848059]
[1770490495015,3.9101286,88.858,88.81,3.85848059]
[1770490496712,3.9101286,88.858,88.811,10.1427]
[1770490496912,3.9101286,88.858,88.811,14.00118059]
[1770490497310,3.9101286,88.872,88.812,3.85848059]
[1770490497520,3.9101286,88.872,88.823,13.99988059]
[1770490497715,3.9101286,88.872,88.824,3.85848059]
[1770490497920,10.48629205,88.883,88.824,3.85848059]
[1770490498121,14.39642065,88.883,88.824,3.85848059]
[1770490498308,3.9101286,88.883,88.824,3.85848059]
[1770490498719,3.9101286,88.883,88.833,10.1402]
[1770490500418,3.9101286,88.883,88.824,3.85848059]
[1770490500828,3.9101286,88.869,88.753,3.85848059]
[1770490501021,3.9101286,88.856,88.761,3.85848059]
[1770490501218,3.9101286,88.855,88.761,3.85848059]
[1770490501526,3.9101286,88.853,88.761,3.85848059]
[1770490501721,3.9101286,88.853,88.789,3.85848059]
[1770490502220,24.02601444,88.865,88.789,3.85848059]
[1770490502221,3.9101286,88.851,88.789,3.85848059]
[1770490504329,3.9101286,88.845,88.789,3.85848059]
[1770490504515,3.9101286,88.841,88.789,3.85848059]
[1770490504722,3.9101286,88.84,88.789,3.85848059]
[1770490506524,3.54441478,88.855,88.791,3.8445001]
[1770490507521,3.54441478,88.855,88.809,10.1429]
[1770490507724,3.54441478,88.855,88.791,3.8445001]
[1770490508037,3.54441478,88.851,88.791,3.8445001]
[1770490508830,9.22461489,88.85,88.782,3.8445001]
[1770490509128,3.54441478,88.841,88.782,3.8445001]
[1770490509720,3.54441478,88.841,88.786,3.8445001]